[Event "3rd FIDE WCCC Blitz G12 2019"]
[Site "Minsk"]
[Date "2019.08.18"]
[Round "8.6"]
[White "Kirdyashkina, Ekaterina"]
[Black "Lomakina, Anzhelika"]
[Result "1-0"]
[ECO "C67"]
[WhiteElo "1691"]
[BlackElo "1732"]
[Annotator "NA"]
[PlyCount "111"]
[EventDate "2019.08.18"]
[EventType "swiss"]
[EventCountry "BLR"]
[SourceTitle "playchess.com"]
[Source "ChessBase"]
[SourceQuality "1"]
[TimeControl "300+2"]

1. e4 {[%emt 0:00:00]} e5 {[%emt 0:00:00]} 2. Nf3 {[%emt 0:00:01]} Nc6 {[%emt 0:00:00]} 3. Bb5 {[%emt 0:00:00]} Nf6 {[%emt 0:00:00]} 4. O-O {[%emt 0:00:03]} Nxe4 {[%emt 0:00:01]} 5. Re1 {[%emt 0:00:01]} Nd6 {[%emt 0:00:01]} 6. Bxc6 {[%emt 0:00:06]} dxc6 {[%emt 0:00:01]} 7. Nxe5 {[%emt 0:00:01]} Be7 {[%emt 0:00:02]} 8. Qe2 {[%emt 0:00:01]} Be6 {[%emt 0:00:10]} 9. Nc3 {[%emt 0:00:07]} O-O {[%emt 0:00:02]} 10. d3 {[%emt 0:00:05]} Re8 {[%emt 0:00:02]} 11. Qf3 {[%emt 0:00:15]} Bf6 {[%emt 0:00:05]} 12. Bf4 {[%emt 0:00:43]} Nf5 13. Ng4 {[%emt 0:00:02]} Nd4 {[%emt 0:00:34]} 14. Qg3 {[%emt 0:00:24]} Bxg4 {[%emt 0:01:57]} 15. Rxe8+ {[%emt 0:00:25]} Qxe8 {[%emt 0:00:00]} 16. Qxg4 {[%emt 0:00:02]} Nxc2 {[%emt 0:00:01]} 17. Rc1 {[%emt 0:00:03]} Nd4 {[%emt 0:00:03]} 18. Bxc7 {[%emt 0:00:07]} Qe6 {[%emt 0:00:20]} 19. Qxe6 {[%emt 0:00:25]} Nxe6 {[%emt 0:00:01]} 20. Bg3 {[%emt 0:00:02]} Rd8 {[%emt 0:00:01]} 21. Rd1 {[%emt 0:00:22]} Nc5 {[%emt 0:00:12]} 22. d4 {[%emt 0:00:58]} Rxd4 {[%emt 0:00:30]} 23. Re1 {[%emt 0:00:04]} h6 {[%emt 0:00:01]} 24. Re8+ {[%emt 0:00:41]} Kh7 {[%emt 0:00:03]} 25. Kf1 {[%emt 0:00:04]} Rd2 {[%emt 0:00:05]} 26. Re2 {[%emt 0:00:17]} Rxe2 {[%emt 0:00:28]} 27. Kxe2 {[%emt 0:00:01]} Kg6 {[%emt 0:00:02]} 28. f3 {[%emt 0:00:01]} Bd4 {[%emt 0:00:24]} 29. Bb8 {[%emt 0:00:08]} a6 {[%emt 0:00:09]} 30. Ba7 {[%emt 0:00:14]} Kf5 {[%emt 0:00:08]} 31. Nd1 {[%emt 0:00:08]} Ne6 {[%emt 0:00:17]} 32. Bxd4 {[%emt 0:00:03]} Nxd4+ {[%emt 0:00:01]} 33. Kd3 {[%emt 0:00:01]} Ne6 {[%emt 0:00:11]} 34. Ne3+ {[%emt 0:00:01]} Ke5 {[%emt 0:00:01]} 35. Nc4+ {[%emt 0:00:01]} Kd5 {[%emt 0:00:02]} 36. Ne3+ {[%emt 0:00:03]} Kc5 {[%emt 0:00:03]} 37. g3 {[%emt 0:00:01]} b5 {[%emt 0:00:04]} 38. Nf5 {[%emt 0:00:01]} Kb6 {[%emt 0:00:08]} 39. Ke4 {[%emt 0:00:02]} c5 {[%emt 0:00:02]} 40. Nd6 {[%emt 0:00:02]} f6 {[%emt 0:00:02]} 41. Nf5 {[%emt 0:00:04]} Kc6 {[%emt 0:00:02]} 42. f4 {[%emt 0:00:04]} c4 {[%emt 0:00:02]} 43. Ne3 {[%emt 0:00:02]} Kc5 {[%emt 0:00:02]} 44. Kf5 {[%emt 0:00:01]} Nd4+ {[%emt 0:00:01]} 45. Kg6 {[%emt 0:00:01]} Ne6 {[%emt 0:00:03]} 46. f5 {[%emt 0:00:02]} Ng5 {[%emt 0:00:03]} 47. Kxg7 {[%emt 0:00:03]} Kd4 {[%emt 0:00:01]} 48. Ng4 {[%emt 0:00:02]} Ke4 {[%emt 0:00:03]} 49. Kxf6 {[%emt 0:00:02]} Nf3 {[%emt 0:00:02]} 50. Nxh6 {[%emt 0:00:02]} Nxh2 {[%emt 0:00:01]} 51. g4 {[%emt 0:00:01]} Kf4 {[%emt 0:00:02]} 52. g5 {[%emt 0:00:01]} b4 {[%emt 0:00:01]} 53. g6 {[%emt 0:00:02]} c3 {[%emt 0:00:02]} 54. bxc3 bxc3 {[%emt 0:00:01]} 55. g7 {[%emt 0:00:02]} c2 {[%emt 0:00:00]} 56. g8=Q {[%emt 0:00:02]} 1-0

[Event "3rd FIDE WCCC Blitz G12 2019"]
[Site "Minsk"]
[Date "2019.08.18"]
[Round "9.1"]
[White "Zhapova, Yana"]
[Black "Shubenkova, Veronika"]
[Result "1-0"]
[ECO "B10"]
[WhiteElo "1809"]
[BlackElo "1740"]
[Annotator "NA"]
[PlyCount "125"]
[EventDate "2019.08.18"]
[EventType "swiss"]
[EventCountry "BLR"]
[SourceTitle "playchess.com"]
[Source "ChessBase"]
[SourceQuality "1"]
[TimeControl "300+2"]

1. e4 {[%emt 0:00:00]} c6 {[%emt 0:00:00]} 2. Nc3 {[%emt 0:00:02]} d5 {[%emt 0:00:00]} 3. Nf3 {[%emt 0:00:01]} Nf6 {[%emt 0:00:04]} 4. e5 {[%emt 0:00:08]} Ne4 {[%emt 0:00:01]} 5. d4 {[%emt 0:00:22]} Bg4 {[%emt 0:00:18]} 6. Be2 {[%emt 0:00:06]} Nxc3 {[%emt 0:01:07]} 7. bxc3 {[%emt 0:00:01]} e6 {[%emt 0:00:01]} 8. O-O {[%emt 0:00:05]} Be7 {[%emt 0:00:01]} 9. h3 {[%emt 0:00:01]} Bxf3 {[%emt 0:00:10]} 10. Bxf3 {[%emt 0:00:02]} O-O {[%emt 0:00:02]} 11. Be2 {[%emt 0:00:07]} c5 {[%emt 0:00:01]} 12. f4 {[%emt 0:00:02]} Nc6 {[%emt 0:00:06]} 13. Be3 {[%emt 0:00:24]} Rc8 {[%emt 0:00:04]} 14. f5 {[%emt 0:00:04]} cxd4 {[%emt 0:00:01]} 15. cxd4 {[%emt 0:00:04]} Nb4 {[%emt 0:00:02]} 16. Bd3 {[%emt 0:00:43]} Nxd3 {[%emt 0:00:21]} 17. Qxd3 {[%emt 0:00:02]} Kh8 {[%emt 0:00:19]} 18. Qe2 {[%emt 0:00:23]} Rc3 {[%emt 0:00:14]} 19. Bd2 {[%emt 0:00:26]} Rxc2 {[%emt 0:00:10]} 20. Qd3 {[%emt 0:00:15]} Rc4 {[%emt 0:00:23]} 21. Rab1 {[%emt 0:00:10]} b6 {[%emt 0:00:17]} 22. Be3 {[%emt 0:00:25]} Qc7 {[%emt 0:00:32]} 23. f6 {[%emt 0:00:20]} gxf6 {[%emt 0:00:01]} 24. exf6 {[%emt 0:00:00]} Bd6 {[%emt 0:00:01]} 25. Bh6 {[%emt 0:00:09]} Rxd4 {[%emt 0:00:36]} 26. Qe3 {[%emt 0:00:25]} Rg8 {[%emt 0:00:23]} 27. Bg7+ {[%emt 0:00:04]} Rxg7 {[%emt 0:00:02]} 28. fxg7+ {[%emt 0:00:01]} Kxg7 {[%emt 0:00:01]} 29. Qxd4+ {[%emt 0:00:03]} Be5 {[%emt 0:00:01]} 30. Qg4+ {[%emt 0:00:02]} Kf8 {[%emt 0:00:01]} 31. Rbc1 {[%emt 0:00:04]} Qd7 {[%emt 0:00:04]} 32. Qg5 {[%emt 0:00:15]} Bd4+ {[%emt 0:00:02]} 33. Kh1 {[%emt 0:00:01]} Bc5 {[%emt 0:00:24]} 34. Qh6+ {[%emt 0:00:05]} Ke8 {[%emt 0:00:02]} 35. Qxh7 {[%emt 0:00:04]} Qe7 {[%emt 0:00:00]} 36. Qg8+ {[%emt 0:00:04]} Qf8 {[%emt 0:00:03]} 37. Qxf8+ {[%emt 0:00:07]} Kxf8 {[%emt 0:00:01]} 38. Rf6 {[%emt 0:00:24]} Ke7 {[%emt 0:00:03]} 39. Rcf1 {[%emt 0:00:02]} d4 {[%emt 0:00:03]} 40. Rxf7+ {[%emt 0:00:01]} Kd6 {[%emt 0:00:00]} 41. Rxa7 {[%emt 0:00:08]} e5 {[%emt 0:00:02]} 42. Ra8 {[%emt 0:00:05]} e4 {[%emt 0:00:03]} 43. Re8 {[%emt 0:00:05]} e3 {[%emt 0:00:02]} 44. Rd1 {[%emt 0:00:01]} Kd5 {[%emt 0:00:01]} 45. Rxe3 {[%emt 0:00:02]} Kc4 {[%emt 0:00:02]} 46. Rf3 {[%emt 0:00:01]} b5 {[%emt 0:00:02]} 47. Rfd3 b4 {[%emt 0:00:02]} 48. h4 {[%emt 0:00:01]} Bb6 {[%emt 0:00:02]} 49. h5 {[%emt 0:00:01]} Bc5 {[%emt 0:00:01]} 50. h6 {[%emt 0:00:01]} Kd5 {[%emt 0:00:04]} 51. h7 {[%emt 0:00:01]} Ke4 {[%emt 0:00:01]} 52. h8=Q {[%emt 0:00:01]} b3 {[%emt 0:00:01]} 53. axb3 {[%emt 0:00:02]} Bb6 {[%emt 0:00:01]} 54. Qh4+ {[%emt 0:00:02]} Ke5 {[%emt 0:00:01]} 55. Re1+ {[%emt 0:00:01]} Kd6 {[%emt 0:00:01]} 56. Qf6+ Kc5 57. Re5+ {[%emt 0:00:05]} Kb4 {[%emt 0:00:02]} 58. Qxb6+ {[%emt 0:00:02]} Ka3 {[%emt 0:00:00]} 59. Ra5+ {[%emt 0:00:07]} Kb2 {[%emt 0:00:01]} 60. Qxd4+ {[%emt 0:00:03]} Kc2 {[%emt 0:00:01]} 61. Rd2+ {[%emt 0:00:01]} Kxb3 {[%emt 0:00:02]} 62. Rb5+ {[%emt 0:00:01]} Ka3 {[%emt 0:00:01]} 63. Qb4# 1-0

[Event "3rd FIDE WCCC Blitz G12 2019"]
[Site "Minsk"]
[Date "2019.08.18"]
[Round "9.2"]
[White "Vu, My Linh"]
[Black "Babic, Milana"]
[Result "0-1"]
[ECO "A53"]
[WhiteElo "1467"]
[BlackElo "1689"]
[Annotator "NA"]
[PlyCount "96"]
[EventDate "2019.08.18"]
[EventType "swiss"]
[EventCountry "BLR"]
[SourceTitle "playchess.com"]
[Source "ChessBase"]
[SourceQuality "1"]
[TimeControl "300+2"]

1. d4 {[%emt 0:00:00]} Nf6 {[%emt 0:00:00]} 2. c4 {[%emt 0:00:00]} d6 {[%emt 0:00:00]} 3. Nc3 {[%emt 0:00:01]} Nbd7 4. e4 {[%emt 0:00:03]} e5 {[%emt 0:00:00]} 5. d5 {[%emt 0:00:02]} c6 {[%emt 0:00:01]} 6. Nf3 {[%emt 0:00:03]} Nc5 {[%emt 0:00:03]} 7. Bd3 {[%emt 0:00:03]} a5 {[%emt 0:00:00]} 8. O-O {[%emt 0:00:03]} Be7 {[%emt 0:00:02]} 9. Be3 {[%emt 0:00:02]} Nxd3 10. Qxd3 {[%emt 0:00:02]} Bg4 {[%emt 0:00:18]} 11. Nd2 {[%emt 0:00:13]} O-O {[%emt 0:00:13]} 12. h3 {[%emt 0:00:14]} Bh5 {[%emt 0:00:06]} 13. f4 {[%emt 0:00:06]} exf4 {[%emt 0:00:03]} 14. Bxf4 {[%emt 0:00:03]} Bg6 {[%emt 0:00:15]} 15. Qf3 {[%emt 0:00:18]} Nd7 {[%emt 0:00:17]} 16. Nb3 {[%emt 0:00:17]} a4 {[%emt 0:00:11]} 17. Nd4 {[%emt 0:00:26]} Qb6 {[%emt 0:00:16]} 18. Qf2 {[%emt 0:00:02]} Nc5 {[%emt 0:00:26]} 19. Nf3 {[%emt 0:00:50]} Qa6 {[%emt 0:00:10]} 20. Qe2 {[%emt 0:00:32]} Rfe8 {[%emt 0:00:09]} 21. dxc6 {[%emt 0:00:08]} bxc6 {[%emt 0:00:01]} 22. Rad1 {[%emt 0:00:02]} Bf6 {[%emt 0:00:28]} 23. Bxd6 {[%emt 0:00:25]} Nxe4 {[%emt 0:00:09]} 24. c5 {[%emt 0:00:44]} Qxe2 {[%emt 0:00:42]} 25. Nxe2 {[%emt 0:00:05]} Bxb2 {[%emt 0:00:02]} 26. Nf4 {[%emt 0:00:14]} Ba3 {[%emt 0:00:29]} 27. Nxg6 hxg6 {[%emt 0:00:01]} 28. Ne5 {[%emt 0:00:07]} Bxc5+ {[%emt 0:00:17]} 29. Bxc5 {[%emt 0:00:05]} Rxe5 {[%emt 0:00:07]} 30. Ba3 {[%emt 0:00:13]} Ng3 {[%emt 0:00:13]} 31. Rf3 {[%emt 0:00:01]} Ne2+ {[%emt 0:00:02]} 32. Kf2 {[%emt 0:00:01]} Rae8 33. Rd6 {[%emt 0:00:16]} c5 {[%emt 0:00:20]} 34. Rd7 {[%emt 0:00:07]} f5 {[%emt 0:00:05]} 35. Rc7 {[%emt 0:00:02]} Nd4 {[%emt 0:00:03]} 36. Rc3 {[%emt 0:00:08]} Nb5 {[%emt 0:00:02]} 37. R3xc5 {[%emt 0:00:02]} Re2+ {[%emt 0:00:05]} 38. Kg1 {[%emt 0:00:04]} Nxc7 {[%emt 0:00:02]} 39. Rxc7 {[%emt 0:00:02]} Rxa2 {[%emt 0:00:06]} 40. Bb4 {[%emt 0:00:00]} Ree2 {[%emt 0:00:05]} 41. Bc3 {[%emt 0:00:06]} Rxg2+ {[%emt 0:00:01]} 42. Kh1 {[%emt 0:00:01]} Kh7 {[%emt 0:00:03]} 43. Rxg7+ {[%emt 0:00:00]} Kh6 {[%emt 0:00:01]} 44. Rg8 {[%emt 0:00:02]} Kg5 {[%emt 0:00:01]} 45. Rh8 {[%emt 0:00:04]} Rgc2 {[%emt 0:00:05]} 46. h4+ {[%emt 0:00:02]} Kg4 {[%emt 0:00:05]} 47. Be1 {[%emt 0:00:04]} Ra1 {[%emt 0:00:02]} 48. Re8 {[%emt 0:00:02]} Rcc1 {[%emt 0:00:01]} 0-1

[Event "3rd FIDE WCCC Blitz G12 2019"]
[Site "Minsk"]
[Date "2019.08.18"]
[Round "9.3"]
[White "Szczotka, Klara"]
[Black "Ivanytska, Liudmyla"]
[Result "1-0"]
[ECO "B42"]
[WhiteElo "1732"]
[BlackElo "1539"]
[Annotator "NA"]
[PlyCount "79"]
[EventDate "2019.08.18"]
[EventType "swiss"]
[EventCountry "BLR"]
[SourceTitle "playchess.com"]
[Source "ChessBase"]
[SourceQuality "1"]
[TimeControl "300+2"]

1. e4 {[%emt 0:00:00]} c5 {[%emt 0:00:00]} 2. Nf3 {[%emt 0:00:00]} e6 {[%emt 0:00:00]} 3. d4 {[%emt 0:00:00]} cxd4 {[%emt 0:00:01]} 4. Nxd4 {[%emt 0:00:01]} a6 {[%emt 0:00:02]} 5. Bd3 {[%emt 0:00:04]} Nf6 {[%emt 0:00:04]} 6. Qe2 {[%emt 0:00:08]} d6 {[%emt 0:00:04]} 7. Nc3 Qc7 {[%emt 0:00:03]} 8. Bd2 {[%emt 0:00:02]} Be7 {[%emt 0:00:01]} 9. O-O {[%emt 0:00:03]} O-O {[%emt 0:00:05]} 10. Kh1 {[%emt 0:00:01]} Nbd7 {[%emt 0:00:01]} 11. f4 {[%emt 0:00:02]} b5 {[%emt 0:00:01]} 12. a3 {[%emt 0:00:01]} Bb7 {[%emt 0:00:01]} 13. Rae1 {[%emt 0:00:01]} Rac8 {[%emt 0:00:07]} 14. Rf3 {[%emt 0:00:56]} Rfe8 {[%emt 0:00:05]} 15. Rh3 {[%emt 0:00:02]} Nf8 {[%emt 0:00:01]} 16. e5 {[%emt 0:00:08]} dxe5 {[%emt 0:00:02]} 17. fxe5 {[%emt 0:00:00]} Nd5 {[%emt 0:00:16]} 18. Bxh7+ {[%emt 0:01:28]} Nxh7 {[%emt 0:00:01]} 19. Qh5 {[%emt 0:00:01]} Bc5 {[%emt 0:00:17]} 20. Qxh7+ {[%emt 0:00:08]} Kf8 {[%emt 0:00:02]} 21. Nb3 {[%emt 0:00:53]} Ne7 {[%emt 0:02:53]} 22. Qh8+ {[%emt 0:00:25]} Ng8 {[%emt 0:00:01]} 23. Rg3 {[%emt 0:00:24]} Ke7 {[%emt 0:00:43]} 24. Bg5+ {[%emt 0:00:09]} Kd7 {[%emt 0:00:04]} 25. Rd3+ {[%emt 0:00:03]} Kc6 {[%emt 0:00:09]} 26. Nxc5 {[%emt 0:00:15]} Kxc5 {[%emt 0:00:01]} 27. Ne4+ {[%emt 0:00:06]} Bxe4 {[%emt 0:00:03]} 28. Rc3+ {[%emt 0:00:02]} Kd5 {[%emt 0:00:07]} 29. Rxc7 Rxc7 {[%emt 0:00:02]} 30. Qh4 {[%emt 0:00:05]} Rc4 {[%emt 0:00:13]} 31. Rd1+ {[%emt 0:00:13]} Kc6 {[%emt 0:00:04]} 32. Rd6+ {[%emt 0:00:01]} Kb7 {[%emt 0:00:05]} 33. Qf2 {[%emt 0:00:02]} Rc6 {[%emt 0:00:16]} 34. Qxf7+ {[%emt 0:00:02]} Kb6 {[%emt 0:00:05]} 35. Rxc6+ {[%emt 0:00:01]} Bxc6 36. Be3+ {[%emt 0:00:04]} Ka5 {[%emt 0:00:03]} 37. Qc7+ {[%emt 0:00:01]} Ka4 {[%emt 0:00:01]} 38. Qxc6 {[%emt 0:00:06]} Rf8 {[%emt 0:00:04]} 39. Qe4+ {[%emt 0:00:02]} Ka5 {[%emt 0:00:01]} 40. Qb4# {[%emt 0:00:01]} 1-0

[Event "3rd FIDE WCCC Blitz G12 2019"]
[Site "Minsk"]
[Date "2019.08.18"]
[Round "9.4"]
[White "Kirdyashkina, Ekaterina"]
[Black "Vlasova, Olesia"]
[Result "1-0"]
[ECO "B30"]
[WhiteElo "1691"]
[BlackElo "1799"]
[Annotator "NA"]
[PlyCount "97"]
[EventDate "2019.08.18"]
[EventType "swiss"]
[EventCountry "BLR"]
[SourceTitle "playchess.com"]
[Source "ChessBase"]
[SourceQuality "1"]
[TimeControl "300+2"]

1. e4 {[%emt 0:00:00]} c5 {[%emt 0:00:00]} 2. Nf3 {[%emt 0:00:00]} Nc6 {[%emt 0:00:00]} 3. c3 {[%emt 0:00:01]} d5 {[%emt 0:00:05]} 4. exd5 {[%emt 0:00:01]} Qxd5 {[%emt 0:00:01]} 5. d4 {[%emt 0:00:01]} Bg4 {[%emt 0:00:15]} 6. Be2 {[%emt 0:00:02]} Nf6 {[%emt 0:00:09]} 7. O-O {[%emt 0:00:09]} e6 {[%emt 0:00:02]} 8. Be3 {[%emt 0:00:10]} cxd4 {[%emt 0:00:07]} 9. Nxd4 {[%emt 0:00:15]} Bxe2 {[%emt 0:00:30]} 10. Qxe2 {[%emt 0:00:03]} Be7 {[%emt 0:00:07]} 11. Nxc6 {[%emt 0:00:04]} Qxc6 {[%emt 0:00:03]} 12. Nd2 {[%emt 0:00:07]} O-O {[%emt 0:00:03]} 13. Nb3 {[%emt 0:00:01]} Rfd8 {[%emt 0:00:40]} 14. Nd4 {[%emt 0:00:01]} Qc7 {[%emt 0:00:26]} 15. Nb5 {[%emt 0:00:07]} Qa5 {[%emt 0:00:27]} 16. a4 {[%emt 0:00:20]} Rd7 {[%emt 0:00:57]} 17. Qf3 {[%emt 0:00:35]} a6 {[%emt 0:00:17]} 18. Nd4 {[%emt 0:00:26]} Nd5 {[%emt 0:00:07]} 19. Qh3 {[%emt 0:01:00]} Rad8 {[%emt 0:00:28]} 20. Rfc1 {[%emt 0:00:51]} Qc7 {[%emt 0:00:19]} 21. Qf3 {[%emt 0:00:26]} Bf6 {[%emt 0:00:02]} 22. Ne2 {[%emt 0:00:08]} Nxe3 {[%emt 0:00:05]} 23. Qxe3 {[%emt 0:00:05]} Rd2 {[%emt 0:00:04]} 24. b3 {[%emt 0:00:14]} R2d3 {[%emt 0:00:05]} 25. Qe4 {[%emt 0:00:24]} Qd7 {[%emt 0:00:17]} 26. g3 {[%emt 0:00:04]} g6 {[%emt 0:00:04]} 27. Kg2 {[%emt 0:00:01]} Kg7 {[%emt 0:00:02]} 28. Rab1 {[%emt 0:00:04]} Rd5 {[%emt 0:00:03]} 29. Nf4 {[%emt 0:00:02]} Rd6 {[%emt 0:00:02]} 30. h4 b5 31. axb5 {[%emt 0:00:05]} axb5 {[%emt 0:00:01]} 32. c4 {[%emt 0:00:04]} bxc4 {[%emt 0:00:01]} 33. bxc4 {[%emt 0:00:02]} Rd4 {[%emt 0:00:01]} 34. Qe3 {[%emt 0:00:03]} Qc6+ {[%emt 0:00:01]} 35. Qf3 {[%emt 0:00:03]} Qc5 {[%emt 0:00:04]} 36. Qe3 {[%emt 0:00:04]} Rc8 {[%emt 0:00:04]} 37. Rb5 {[%emt 0:00:02]} Qd6 {[%emt 0:00:09]} 38. c5 {[%emt 0:00:02]} Qd8 {[%emt 0:00:03]} 39. c6 {[%emt 0:00:01]} Rc7 {[%emt 0:00:03]} 40. Rbc5 {[%emt 0:00:01]} Qd6 {[%emt 0:00:01]} 41. h5 {[%emt 0:00:02]} Bg5 {[%emt 0:00:03]} 42. Nxe6+ {[%emt 0:00:05]} Qxe6 {[%emt 0:00:03]} 43. Qxg5 {[%emt 0:00:01]} Qe4+ {[%emt 0:00:02]} 44. Kh2 {[%emt 0:00:01]} Re7 {[%emt 0:00:02]} 45. h6+ {[%emt 0:00:02]} Kg8 {[%emt 0:00:01]} 46. c7 {[%emt 0:00:00]} Re8 {[%emt 0:00:02]} 47. c8=Q {[%emt 0:00:03]} Qe2 {[%emt 0:00:03]} 48. Qxe8+ {[%emt 0:00:00]} Qxe8 {[%emt 0:00:00]} 49. Rc8 {time} 1-0

[Event "3rd FIDE WCCC Blitz G12 2019"]
[Site "Minsk"]
[Date "2019.08.18"]
[Round "9.5"]
[White "Shevtsova, Darya"]
[Black "Kaldarova, Ayaulym"]
[Result "1-0"]
[ECO "E16"]
[WhiteElo "1596"]
[BlackElo "1476"]
[Annotator "NA"]
[PlyCount "115"]
[EventDate "2019.08.18"]
[EventType "swiss"]
[EventCountry "BLR"]
[SourceTitle "playchess.com"]
[Source "ChessBase"]
[SourceQuality "1"]
[TimeControl "300+2"]

1. d4 {[%emt 0:00:00]} Nf6 {[%emt 0:00:00]} 2. c4 {[%emt 0:00:00]} e6 {[%emt 0:00:00]} 3. Nf3 {[%emt 0:00:01]} Bb4+ {[%emt 0:00:01]} 4. Bd2 {[%emt 0:00:01]} Qe7 {[%emt 0:00:00]} 5. g3 {[%emt 0:00:04]} Bxd2+ {[%emt 0:00:02]} 6. Qxd2 {[%emt 0:00:02]} d6 {[%emt 0:00:01]} 7. Bg2 {[%emt 0:00:02]} O-O {[%emt 0:00:03]} 8. Nc3 {[%emt 0:00:02]} e5 {[%emt 0:00:10]} 9. O-O {[%emt 0:00:13]} c5 {[%emt 0:00:02]} 10. dxe5 {[%emt 0:00:14]} dxe5 {[%emt 0:00:01]} 11. Rad1 {[%emt 0:00:25]} Nc6 {[%emt 0:00:02]} 12. Nd5 {[%emt 0:00:16]} Nxd5 {[%emt 0:00:10]} 13. Qxd5 {[%emt 0:00:29]} Rd8 {[%emt 0:00:24]} 14. Qe4 {[%emt 0:00:05]} f5 {[%emt 0:00:20]} 15. Rxd8+ {[%emt 0:00:25]} Qxd8 {[%emt 0:00:14]} 16. Qd5+ {[%emt 0:00:02]} Qxd5 {[%emt 0:00:01]} 17. cxd5 {[%emt 0:00:02]} e4 {[%emt 0:00:54]} 18. dxc6 {[%emt 0:00:04]} exf3 {[%emt 0:00:01]} 19. Bxf3 {[%emt 0:00:18]} bxc6 {[%emt 0:00:02]} 20. Bxc6 {[%emt 0:00:03]} Rb8 {[%emt 0:00:01]} 21. b3 {[%emt 0:00:03]} Rb6 {[%emt 0:00:16]} 22. Bd5+ {[%emt 0:00:04]} Kf8 {[%emt 0:00:03]} 23. Rc1 {[%emt 0:00:01]} Ba6 {[%emt 0:00:20]} 24. e3 {[%emt 0:00:12]} Ke7 {[%emt 0:00:12]} 25. Rxc5 {[%emt 0:00:15]} Kd6 {[%emt 0:00:02]} 26. Ra5 {[%emt 0:00:01]} Bb5 {[%emt 0:00:14]} 27. Bg8 {[%emt 0:00:08]} a6 {[%emt 0:00:03]} 28. b4 {[%emt 0:00:26]} h6 {[%emt 0:00:07]} 29. Ra3 {[%emt 0:00:14]} Ke5 {[%emt 0:00:08]} 30. Rc3 {[%emt 0:00:05]} Rd6 {[%emt 0:00:17]} 31. Rc5+ {[%emt 0:00:12]} Kf6 {[%emt 0:00:09]} 32. Bd5 {[%emt 0:00:03]} g6 {[%emt 0:00:17]} 33. Kg2 {[%emt 0:00:08]} Rxd5 {[%emt 0:00:06]} 34. Rxd5 {[%emt 0:00:07]} Bc6 {[%emt 0:00:01]} 35. e4 {[%emt 0:00:04]} Bxd5 {[%emt 0:00:04]} 36. exd5 {[%emt 0:00:01]} Ke5 {[%emt 0:00:00]} 37. a4 {[%emt 0:00:29]} Kxd5 {[%emt 0:00:01]} 38. b5 {[%emt 0:00:01]} axb5 39. axb5 {[%emt 0:00:00]} Kc5 {[%emt 0:00:02]} 40. Kf3 {[%emt 0:00:01]} Kxb5 {[%emt 0:00:05]} 41. Kf4 {[%emt 0:00:01]} Kc4 {[%emt 0:00:02]} 42. Ke5 {[%emt 0:00:02]} Kd3 {[%emt 0:00:38]} 43. Kf6 {[%emt 0:00:03]} Ke2 {[%emt 0:00:02]} 44. f4 {[%emt 0:00:02]} Kf3 {[%emt 0:00:13]} 45. Kxg6 {[%emt 0:00:03]} Kg2 {[%emt 0:00:03]} 46. Kxh6 {[%emt 0:00:10]} Kxh2 {[%emt 0:00:01]} 47. Kg5 {[%emt 0:00:01]} Kxg3 {[%emt 0:00:01]} 48. Kxf5 {[%emt 0:00:01]} Kh4 {[%emt 0:00:05]} 49. Ke6 {[%emt 0:00:03]} Kh5 {[%emt 0:00:01]} 50. f5 {[%emt 0:00:01]} Kh6 {[%emt 0:00:01]} 51. f6 {[%emt 0:00:02]} Kh7 {[%emt 0:00:05]} 52. Ke7 {[%emt 0:00:02]} Kg8 {[%emt 0:00:03]} 53. f7+ {[%emt 0:00:01]} Kg7 {[%emt 0:00:01]} 54. f8=Q+ {[%emt 0:00:02]} Kg6 {[%emt 0:00:01]} 55. Qf4 {[%emt 0:00:04]} Kh7 {[%emt 0:00:01]} 56. Qg5 {[%emt 0:00:02]} Kh8 {[%emt 0:00:01]} 57. Kf7 {[%emt 0:00:01]} Kh7 {[%emt 0:00:01]} 58. Qh5# {[%emt 0:00:01]} 1-0

[Event "3rd FIDE WCCC Blitz G12 2019"]
[Site "Minsk"]
[Date "2019.08.18"]
[Round "9.6"]
[White "Mikheeva, Galina"]
[Black "Nguyen, Le Cam Hien"]
[Result "0-1"]
[ECO "B06"]
[WhiteElo "1952"]
[BlackElo "1579"]
[Annotator "NA"]
[PlyCount "82"]
[EventDate "2019.08.18"]
[EventType "swiss"]
[EventCountry "BLR"]
[SourceTitle "playchess.com"]
[Source "ChessBase"]
[SourceQuality "1"]
[TimeControl "300+2"]

1. e4 {[%emt 0:00:00]} d6 {[%emt 0:00:00]} 2. d4 {[%emt 0:00:00]} g6 {[%emt 0:00:00]} 3. Nc3 {[%emt 0:00:01]} Bg7 {[%emt 0:00:02]} 4. f4 {[%emt 0:00:01]} e6 {[%emt 0:00:01]} 5. Nf3 {[%emt 0:00:01]} Ne7 {[%emt 0:00:01]} 6. Bd3 {[%emt 0:00:02]} O-O {[%emt 0:00:03]} 7. O-O {[%emt 0:00:01]} Nd7 {[%emt 0:00:05]} 8. Be3 {[%emt 0:00:03]} f5 {[%emt 0:00:02]} 9. e5 {[%emt 0:00:07]} d5 {[%emt 0:00:05]} 10. a4 {[%emt 0:00:19]} h6 {[%emt 0:00:02]} 11. Qd2 {[%emt 0:00:10]} b6 {[%emt 0:00:13]} 12. a5 {[%emt 0:00:22]} Bb7 {[%emt 0:00:13]} 13. axb6 {[%emt 0:00:14]} axb6 {[%emt 0:00:07]} 14. Nb5 {[%emt 0:00:11]} c5 {[%emt 0:00:18]} 15. Nd6 {[%emt 0:00:18]} Bc6 {[%emt 0:00:02]} 16. c4 {[%emt 0:00:15]} Qc7 {[%emt 0:00:30]} 17. Rxa8 {[%emt 0:00:30]} Rxa8 {[%emt 0:00:03]} 18. b4 {[%emt 0:00:27]} cxb4 {[%emt 0:00:23]} 19. Qxb4 {[%emt 0:00:04]} dxc4 {[%emt 0:00:22]} 20. Bxc4 {[%emt 0:00:03]} Nd5 {[%emt 0:00:01]} 21. Bxd5 {[%emt 0:00:21]} Bxd5 {[%emt 0:00:02]} 22. Rc1 {[%emt 0:00:22]} Qa7 {[%emt 0:00:22]} 23. Nd2 {[%emt 0:00:02]} Qa5 {[%emt 0:00:24]} 24. Qb2 {[%emt 0:00:16]} Bf8 {[%emt 0:00:12]} 25. N2c4 {[%emt 0:00:07]} Qa2 {[%emt 0:00:11]} 26. Rc2 {[%emt 0:00:16]} Qxb2 {[%emt 0:00:10]} 27. Rxb2 Bxc4 {[%emt 0:00:17]} 28. Nxc4 {[%emt 0:00:03]} Rb8 {[%emt 0:00:09]} 29. Rb5 {[%emt 0:00:03]} Kf7 {[%emt 0:00:07]} 30. Kf2 {[%emt 0:00:01]} Rc8 {[%emt 0:00:21]} 31. Nxb6 {[%emt 0:00:19]} Rb8 {[%emt 0:00:03]} 32. d5 {[%emt 0:00:03]} exd5 {[%emt 0:00:05]} 33. Ke2 {[%emt 0:00:31]} Be7 {[%emt 0:00:05]} 34. Kd2 {[%emt 0:00:11]} Bf6 {[%emt 0:00:05]} 35. Nxd7 {[%emt 0:00:16]} Rxb5 {[%emt 0:00:02]} 36. Kc2 {[%emt 0:00:06]} Ke6 {[%emt 0:00:10]} 37. exf6 {[%emt 0:00:02] Kxf6 Bd4+ Ke6 Be5} g5 {[%emt 0:00:02]} 38. g3 {[%emt 0:00:03]} g4 {[%emt 0:00:05]} 39. Kd3 {[%emt 0:00:02]} Ra5 {[%emt 0:00:03] Ke3 Ra2 Kd3 Rxh2} 40. Bd4 {[%emt 0:00:00] Rg2 Bg7 Rxg3+ Ke2} h5 {[%emt 0:00:45] Bh6} 41. h4 {[%emt 0:00:00] Kf2 Rf3+ Kg2} gxh3 {[%emt 0:00:00] Kh2 d4} 0-1